[Event "3rd Manaus Open 2024"]
[Site "Manaus"]
[Date "2024.10.12"]
[Round "2.9"]
[White "Cubas, Jose Fernando"]
[Black "McDonald, Ian"]
[Result "1/2-1/2"]
[ECO "B22"]
[WhiteElo "2412"]
[BlackElo "1923"]
[Annotator "RC"]
[PlyCount "96"]
[EventDate "2024.10.05"]
[EventType "swiss"]
[EventCountry "BRA"]
[SourceTitle "playchess.com"]
[Source "ChessBase"]
[SourceQuality "1"]
[TimeControl "5400+30"]

1. e4 {[%emt 0:00:41]} c5 {[%emt 0:00:23]} 2. Nf3 {[%emt 0:01:33]} Nc6 {[%emt 0:00:32]} 3. c3 {[%emt 0:02:21]} Nf6 {[%emt 0:11:40]} 4. e5 {[%emt 0:00:39]} Nd5 {[%emt 0:00:05]} 5. d4 {[%emt 0:00:26]} cxd4 {[%emt 0:00:10]} 6. Bc4 {[%emt 0:00:24]} Nb6 {[%emt 0:00:08]} 7. Bb3 {[%emt 0:00:08]} d5 {[%emt 0:01:31]} 8. exd6 {[%emt 0:05:13]} e6 {[%emt 0:00:45]} 9. cxd4 {[%emt 0:03:45]} Bxd6 {[%emt 0:00:50]} 10. Nc3 {[%emt 0:00:08]} O-O {[%emt 0:01:43]} 11. O-O {[%emt 0:00:14]} Nb4 {[%emt 0:11:12]} 12. Re1 {[%emt 0:04:25]} Bd7 {[%emt 0:04:55]} 13. Bg5 {[%emt 0:05:53]} f6 {[%emt 0:01:50]} 14. Bh4 {[%emt 0:02:06]} N4d5 {[%emt 0:03:46]} 15. Qd3 {[%emt 0:14:13]} Rc8 {[%emt 0:11:00]} 16. Ne5 {[%emt 0:14:29]} Be8 {[%emt 0:14:08]} 17. Bc2 {[%emt 0:06:48]} g6 {[%emt 0:00:02]} 18. Ng4 {[%emt 0:07:36]} Nb4 {[%emt 0:17:05]} 19. Qe2 {[%emt 0:01:38]} Nxc2 {[%emt 0:00:05]} 20. Qxc2 {[%emt 0:02:05]} g5 {[%emt 0:00:01]} 21. Bg3 {[%emt 0:05:17]} Bxg3 {[%emt 0:00:02]} 22. hxg3 {[%emt 0:00:01]} Qxd4 {[%emt 0:00:16]} 23. Qe2 {[%emt 0:00:44]} Rc6 {[%emt 0:06:20]} 24. Nb5 {[%emt 0:01:20]} Qc4 {[%emt 0:00:15]} 25. Nxa7 {[%emt 0:02:54]} Qxe2 {[%emt 0:00:17]} 26. Rxe2 {[%emt 0:00:01]} Rd6 {[%emt 0:00:14]} 27. Rc2 {[%emt 0:01:16]} Nd5 {[%emt 0:00:39]} 28. Nc8 {[%emt 0:01:36]} Rc6 {[%emt 0:00:01]} 29. Rac1 {[%emt 0:03:01]} Rxc2 {[%emt 0:01:59]} 30. Rxc2 {[%emt 0:00:01]} Bg6 {[%emt 0:00:12]} 31. Rc5 {[%emt 0:00:57]} Rd8 {[%emt 0:00:03]} 32. f3 {[%emt 0:02:02]} Be8 {[%emt 0:09:35]} 33. Nf2 {[%emt 0:01:38]} Bc6 {[%emt 0:00:24]} 34. Na7 {[%emt 0:00:08]} Bd7 {[%emt 0:00:02]} 35. Ra5 {[%emt 0:00:29]} Be8 {[%emt 0:00:29]} 36. Ne4 {[%emt 0:02:24]} Bg6 {[%emt 0:00:18]} 37. Nb5 {[%emt 0:01:41]} Bxe4 {[%emt 0:00:02]} 38. fxe4 {[%emt 0:00:01]} Ne3 {[%emt 0:00:18]} 39. Kf2 {[%emt 0:01:03]} Nc4 {[%emt 0:00:23]} 40. Ra7 {[%emt 0:00:04]} Rd2+ {[%emt 0:00:18]} 41. Kg1 {[%emt 0:00:51]} Ne3 {[%emt 0:00:18]} 42. Rxb7 {[%emt 0:00:07]} Rxg2+ {[%emt 0:00:12]} 43. Kh1 {[%emt 0:00:00]} Rxb2 {[%emt 0:01:03]} 44. a4 {[%emt 0:00:02]} Rb1+ {[%emt 0:01:27]} 45. Kh2 {[%emt 0:00:02]} Rb2+ {[%emt 0:00:06]} 46. Kg1 {[%emt 0:00:07]} Rg2+ {[%emt 0:01:12]} 47. Kh1 {[%emt 0:00:01]} Rf2 {[%emt 0:03:32]} 48. a5 {[%emt 0:00:16]} Rf1+ {[%emt 0:00:53]} 1/2-1/2

[Event "3rd Manaus Open 2024"]
[Site "Manaus"]
[Date "2024.10.12"]
[Round "3"]
[White "Zanette, Edgard Vinicius"]
[Black "Presa, Luis Alberto Passos"]
[Result "1-0"]
[ECO "B01"]
[WhiteElo "2064"]
[BlackElo "1800"]
[Annotator "RC"]
[PlyCount "73"]
[EventDate "2024.10.05"]
[EventType "swiss"]
[EventCountry "BRA"]
[SourceTitle "playchess.com"]
[Source "ChessBase"]
[SourceQuality "1"]
[TimeControl "5400+30"]

1. e4 d5 2. exd5 Qxd5 3. Nc3 Qa5 4. Bc4 Nf6 5. h3 c6 6. Qe2 e6 7. d3 Nbd7 8. Bd2 Qe5 9. f4 Qxe2+ 10. Ngxe2 Nb6 11. Bb3 Be7 12. O-O O-O 13. Rae1 Nbd5 14. Nd1 Bc5+ 15. Kh1 Bd7 16. a3 Rad8 17. g4 Bc8 18. Ng3 b5 19. Re2 Bd6 20. g5 Nd7 21. Ne4 Bc7 22. c4 bxc4 23. dxc4 N5b6 24. Bb4 Rfe8 25. Nd6 Bxd6 26. Bxd6 Bb7 27. Rfe1 c5+ 28. Kh2 Ba6 29. Ne3 Rc8 30. Nf5 Kh8 31. Ne7 Ra8 32. f5 Bxc4 33. Bxc4 Nxc4 34. fxe6 Nxd6 35. exd7 Red8 36. Rd1 Rxd7 37. Nf5 1-0

[Event "3rd Manaus Open 2024"]
[Site "Manaus"]
[Date "2024.10.13"]
[Round "3.1"]
[White "Filgueiras, Nathan Felipe"]
[Black "Leitao, Rafael"]
[Result "0-1"]
[ECO "C90"]
[WhiteElo "2343"]
[BlackElo "2592"]
[Annotator "TA"]
[PlyCount "46"]
[EventDate "2024.10.05"]
[EventType "swiss"]
[EventCountry "BRA"]
[SourceTitle "playchess.com"]
[Source "ChessBase"]
[SourceQuality "1"]
[TimeControl "5400+30"]

{[%evp 19,46,10,18,11,17,-16,0,0,0,-55,-28,-35,-52,-91,-85,-93,-66,-128,-127,-274,-266,-246,-261,-510,-550,-654,-653,-1077,-1075]} 1. e4 {[%emt 0:08:18]} e5 {[%emt 0:00:22]} 2. Nf3 {[%emt 0:00:06]} Nc6 {[%emt 0:00:05]} 3. Bc4 {[%emt 0:03:27]} Nf6 {[%emt 0:00:26]} 4. d3 {[%emt 0:01:38]} Be7 {[%emt 0:02:20]} 5. O-O {[%emt 0:00:49]} O-O {[%emt 0:00:09]} 6. Re1 {[%emt 0:01:09]} d6 {[%emt 0:00:24]} 7. c3 {[%emt 0:02:21]} Na5 {[%emt 0:01:55]} 8. Bb5 {[%emt 0:00:07]} a6 {[%emt 0:00:31]} 9. Ba4 {[%emt 0:00:03]} b5 {[%emt 0:00:10]} 10. Bc2 {[%emt 0:00:05]} c5 {[%emt 0:00:07]} 11. a3 {[%emt 0:00:22]} Nc6 {[%emt 0:00:46]} 12. b4 {[%emt 0:04:32]} a5 {[%emt 0:06:37]} 13. bxc5 {[%emt 0:03:28] The position is equal.} dxc5 {[%emt 0:00:33]} 14. h3 {[%emt 0:00:40]} ({White should play} 14. Nbd2 $11) 14... Qc7 {[%emt 0:10:11]} 15. Bb2 {[%emt 0:07:37]} Rd8 {[%emt 0:09:56]} 16. Qe2 {[%emt 0:01:37]} Nh5 {[%emt 0:02:59]} 17. Bc1 {[%emt 0:09:21]} a4 {[%emt 0:12:34] Dodges Bb3} 18. Nh2 {[%emt 0:08:35]} (18. c4 $15) 18... Nf4 {[%emt 0:02:05] Black is more active.} 19. Qf3 {[%emt 0:01:56]} (19. Bxf4 $17 {was necessary.} exf4 20. e5) 19... b4 $19 {[%emt 0:02:04]} 20. axb4 {[%emt 0:19:19]} cxb4 {[%emt 0:00:34]} 21. Rxa4 {[%emt 0:02:57]} (21. Bxf4 exf4 22. Rxa4 Rxa4 (22... Ne5 $2 23. Qe2 $19) 23. Bxa4 bxc3 (23... Ne5 $2 24. Qe2 $19) 24. Rc1 (24. Nxc3 $2 {loses.} Nd4 $19)) 21... Rxa4 {[%emt 0:03:32] Black is clearly winning.} 22. Bxa4 {[%emt 0:00:02]} Rxd3 {[%emt 0:02:07]} 23. Re3 {[%emt 0:01:52] [#]} Nd4 $1 {[%emt 0:01:05][%mdl 512] White got outplayed after the opening.   Weighted Error Value: White=0.97/Black=0.07 (flawless) .  Mistake:       	White=4     	---        Inaccurate:     	White=3     	Black=1      OK:         	White=2     	Black=3      Best:        	---       	Black=1} 0-1

[Event "3rd Manaus Open 2024"]
[Site "Manaus"]
[Date "2024.10.13"]
[Round "3.2"]
[White "Fier, Alexandr"]
[Black "Pinero Rodriguez, Carlos Jose"]
[Result "1/2-1/2"]
[ECO "E61"]
[WhiteElo "2539"]
[BlackElo "2305"]
[Annotator "TA"]
[PlyCount "72"]
[EventDate "2024.10.05"]
[EventType "swiss"]
[EventCountry "BRA"]
[SourceTitle "playchess.com"]
[Source "ChessBase"]
[SourceQuality "1"]
[TimeControl "5400+30"]

{[%evp 9,72,21,44,48,40,36,45,36,35,45,54,45,56,58,61,42,67,32,34,41,45,23,37,8,28,28,27,25,37,0,0,0,10,31,8,0,0,0,0,0,0,0,0,-24,0,0,0,-173,-16,-28,-22,-32,-17,-29,22,-8,-8,-8,-8,-8,-8,-8,-12,-9,0]} 1. d4 {[%emt 0:00:31]} Nf6 {[%emt 0:00:34]} 2. c4 {[%emt 0:00:05]} d6 {[%emt 0:01:24]} 3. Nf3 {[%emt 0:00:45]} g6 {[%emt 0:01:00]} 4. Nc3 {[%emt 0:00:05]} Bf5 {[%emt 0:00:53]} 5. g3 {[%emt 0:01:50]} Ne4 {[%emt 0:01:26]} 6. Nxe4 {[%emt 0:04:25]} Bxe4 {[%emt 0:00:53]} 7. Bh3 {[%emt 0:00:08]} Bg7 {[%emt 0:03:35]} 8. O-O {[%emt 0:00:06] White is slightly better.} O-O {[%emt 0:00:33]} 9. d5 {[%emt 0:04:23]} Bxf3 {[%emt 0:10:33]} 10. exf3 {[%emt 0:00:05]} Nd7 {[%emt 0:00:07]} 11. f4 {[%emt 0:02:07]} a5 {[%emt 0:04:05]} 12. f5 {[%emt 0:00:34]} a4 {[%emt 0:00:38]} 13. fxg6 {[%emt 0:00:08]} hxg6 {[%emt 0:00:03]} 14. Rb1 {[%emt 0:00:10]} c6 {[%emt 0:05:36]} 15. Re1 {[%emt 0:01:12]} Ne5 {[%emt 0:01:29]} 16. Bg2 {[%emt 0:02:38]} Qc7 {[%emt 0:05:33]} 17. h4 {[%emt 0:06:16]} cxd5 {[%emt 0:05:48]} 18. cxd5 {[%emt 0:00:05]} Qc4 {[%emt 0:10:50]} 19. b3 {[%emt 0:03:07]} axb3 {[%emt 0:02:46]} 20. axb3 {[%emt 0:00:05]} Qg4 {[%emt 0:02:11]} 21. Qxg4 {[%emt 0:14:09]} Nxg4 {[%emt 0:00:02]} 22. Re4 {[%emt 0:00:07]} f5 {[%emt 0:03:11]} 23. Rxe7 {[%emt 0:08:51][%cal Og2h3]} Bd4 {[%emt 0:03:26]} 24. Be3 {[%emt 0:04:26]} (24. Rxb7 Bxf2+ 25. Kh1 Bxg3) (24. Re2 Rfe8 (24... Rae8 25. Rxe8 Rxe8 26. Bf4 $11) 25. Rxe8+ Rxe8) 24... Bxe3 {[%emt 0:02:01]} 25. fxe3 {[%emt 0:00:04][%cal Oe7e6]} Rfc8 {[%emt 0:00:05]} 26. e4 {[%emt 0:03:59]} Ra2 {[%emt 0:05:47] Strongly threatening ...Rcc2.} (26... Rc3 {simplifies} 27. exf5 Rxg3 28. Re2 gxf5 29. Rf1 Rf8) 27. exf5 {[%emt 0:43:39]} (27. Rxb7 Rc3 (27... Rcc2 $2 28. Bf3 $19) 28. Kh1 Rcc2 (28... Rxg3 29. Rc1 $11) 29. exf5 Rxg2 30. Rb8+ Kg7 $19) 27... Rcc2 {[%emt 0:00:52]} 28. Bf1 {[%emt 0:00:00] [#]} ({Avoid the trap} 28. Be4 $2 Rc3 $19) (28. Bf3 $11 {and White has nothing to worry.} Ne5 29. Rf1) 28... Rc3 $2 {[%emt 0:00:54]} (28... Nh2 $1 $19 {[%cal Rh2f3] ( -> ...Nf3+)} 29. Re3 Rf2 30. fxg6 Nf3+ 31. Rxf3 Rxf3) 29. Re2 {[%emt 0:00:00]} Rxg3+ {[%emt 0:00:24]} 30. Kh1 {[%emt 0:00:00]} Rxe2 {[%emt 0:05:44]} 31. Bxe2 $15 {[%emt 0:00:00][%mdl 4096] Endgame. KRB-KRN} Nf2+ {[%emt 0:00:44]} 32. Kh2 {[%emt 0:00:00] The position is equal.} Re3 {[%emt 0:00:01]} 33. Bc4 {[%emt 0:00:00] [#] Rg1 is the strong threat.} gxf5 {[%emt 0:00:09]} 34. Rf1 {[%emt 0:00:00]} Ng4+ {[%emt 0:00:08]} 35. Kg2 {[%emt 0:00:00]} Re5 {[%emt 0:00:35] aiming for ...Ne3+.} 36. Ra1 {[%emt 0:00:00]} Ne3+ {[%emt 0:01:11] Weighted Error Value: White=0.19 (very precise) /Black=0.15 (very precise) .  Loses game:     	White=1     	---        Mistake:       	---       	Black=1      Inaccurate:     	White=4     	---        OK:         	White=7     	Black=16     Best:        	White=2     	---} 1/2-1/2

[Event "3rd Manaus Open 2024"]
[Site "Manaus"]
[Date "2024.10.13"]
[Round "3.3"]
[White "Piccoli, Lucas Fonseca"]
[Black "Quintiliano, Renato R."]
[Result "0-1"]
[ECO "B92"]
[WhiteElo "2266"]
[BlackElo "2513"]
[Annotator "TA"]
[PlyCount "85"]
[EventDate "2024.10.05"]
[EventType "swiss"]
[EventCountry "BRA"]
[SourceTitle "playchess.com"]
[Source "ChessBase"]
[SourceQuality "1"]
[TimeControl "5400+30"]

{[%evp 17,85,0,0,8,21,14,16,14,37,36,20,7,19,20,39,27,45,22,14,-81,-74,-83,-20,-35,20,-34,-10,-9,0,-18,-14,-18,61,-220,-71,-99,-99,-277,-269,-274,-279,-274,-267,-277,-260,-295,-299,-304,-291,-308,-300,-347,-350,-343,-338,-656,-637,-611,-466,-700,-520,-709,-562,-1275,-1118,-29986,-29987,-29991,-29992,-29998]} 1. e4 {[%emt 0:02:57]} c5 {[%emt 0:00:10]} 2. Nf3 {[%emt 0:00:06]} d6 {[%emt 0:00:07]} 3. d4 {[%emt 0:00:04]} cxd4 {[%emt 0:00:07]} 4. Nxd4 {[%emt 0:00:05]} Nf6 {[%emt 0:00:09]} 5. Nc3 {[%emt 0:00:06]} a6 {[%emt 0:00:34]} 6. Be2 {[%emt 0:00:06]} e5 {[%emt 0:00:13]} 7. Nb3 {[%emt 0:00:06]} Be7 {[%emt 0:00:09]} 8. O-O {[%emt 0:00:10]} O-O {[%emt 0:00:09]} 9. Qd3 {[%emt 0:00:05]} Be6 {[%emt 0:01:54]} 10. Bd2 {[%emt 0:00:44]} Nbd7 {[%emt 0:00:12]} 11. Nd5 {[%emt 0:00:46]} Bxd5 {[%emt 0:01:06]} 12. exd5 {[%emt 0:00:06] The position is equal.} Rc8 {[%emt 0:01:11]} 13. c4 {[%emt 0:00:20]} b6 {[%emt 0:00:51]} 14. a4 {[%emt 0:00:07]} a5 {[%emt 0:01:53]} 15. Qh3 {[%emt 0:00:19]} Ne8 {[%emt 0:22:21]} 16. f4 {[%emt 0:07:49] Black is weak on the light squares} Bf6 {[%emt 0:13:13]} 17. Bg4 {[%emt 0:08:44]} Rc7 {[%emt 0:00:10] [#]} 18. Nxa5 {[%emt 0:09:29]} bxa5 $17 {[%emt 0:00:23]} 19. Bxa5 {[%emt 0:00:02] [#]} Nc5 $1 {[%emt 0:00:48]} 20. b4 $11 {[%emt 0:00:44] [#]} (20. Bxc7 Qxc7 21. b4 exf4 $17) 20... exf4 {[%emt 0:15:02]} (20... Na6 $1 $15) 21. Ra2 {[%emt 0:17:52] [#]} (21. Bxc7 Qxc7 22. Rae1 Nxa4 $17) ({White should play} 21. bxc5 $11 Bxa1 22. Rxa1 dxc5 23. Bxc7 Qxc7 24. Qc3) 21... Qb8 $1 {[%emt 0:05:31]} 22. bxc5 {[%emt 0:16:42]} (22. Bxc7 $2 Qxb4 23. Qa3 (23. Bf5 $2 g6 $19) 23... Qxa3 (23... Qxc4 $2 24. Bb6 $19) 24. Rxa3 Nxc7 25. Rxf4 Rb8 $19) 22... Rxc5 23. Bd2 {[%emt 0:02:31]} Rxc4 {[%emt 0:02:11]} 24. a5 {[%emt 0:05:22][%cal Og4e2]} Qb5 {[%emt 0:15:00]} (24... Rc7 $11) 25. Qf3 $2 {[%emt 0:11:27][%mdl 8192] [#]} (25. Rxf4 $2 Rxf4 (25... Qxd5 26. Qf3 $15) 26. Bxf4 Qb1+ (26... Qxd5 $2 27. Re2 $19) 27. Kf2 Qxa2+ $19) (25. Be2 $1 $14 {keeps the upper hand.} Bd4+ 26. Kh1 Qxd5 27. Qb3 (27. Bxc4 Qxc4 28. Raa1 Bxa1 $15) (27. Rxf4 Rc5 $11) (27. Bxf4 Rc3 $15)) 25... Be5 {[%emt 0:04:11]} (25... Bd4+ $1 $19 {has better winning chances.} 26. Kh1 Be3 (26... Nf6 27. Bf5 $11)) 26. Bf5 {[%emt 0:16:41]} (26. a6 $2 Ra4 27. Rxa4 Qxa4 28. Bxf4 Qxa6 $19) 26... Ra4 {[%emt 0:03:41]} 27. Rb1 $2 {[%emt 0:00:00]} (27. Rxa4 $17 Qxa4 28. Qe4 (28. Bxf4 $2 {perishes.} Bxf4 29. Qxf4 Qxa5 $19)) 27... Qc5+ $19 {[%emt 0:03:00]} 28. Be3 {[%emt 0:00:00]} Qxa5 {[%emt 0:01:02]} (28... Rxa2 29. Bxc5 dxc5 30. Bxh7+ Kh8 31. Bd3 $11) 29. Rxa4 {[%emt 0:00:00]} Qxa4 {[%emt 0:00:07]} 30. Bf2 {[%emt 0:00:00]} Nf6 {[%emt 0:00:13]} 31. Kh1 {[%emt 0:00:00]} g6 {[%emt 0:10:22]} 32. Bd3 {[%emt 0:00:00]} Qa2 {[%emt 0:00:00]} 33. Rd1 {[%emt 0:02:21]} Qxd5 {[%emt 0:00:00]} 34. Qe2 {[%emt 0:00:50]} Qe6 {[%emt 0:00:00]} 35. h3 {[%emt 0:00:39]} Rb8 {[%emt 0:00:00]} 36. Bc4 $2 {[%emt 0:00:37] [#]} (36. Re1) 36... f3 $1 {[%emt 0:00:00]} 37. Qd3 {[%emt 0:00:31]} fxg2+ {[%emt 0:00:00]} 38. Kg1 {[%emt 0:00:26]} (38. Kxg2 $142 Qc8 39. Rb1) 38... Qe7 {[%emt 0:00:00][%cal Of6e4] And now ...Ne4! would win.} 39. Qf3 {[%emt 0:00:34]} Rb4 {[%emt 0:00:00]} 40. Qd3 {[%emt 0:00:31] [#]} Ne4 $1 {[%emt 0:00:00] ( -> ...Nxf2)} 41. Be1 {[%emt 0:00:21]} (41. Bd4 Qh4) 41... Rb2 {[%emt 0:00:00]} 42. Qa3 {[%emt 0:00:36]} Qg5 {[%emt 0:01:27]} 43. Bb4 {[%emt 0:01:04] Weighted Error Value: White=0.90/Black=0.43.  Loses game:     	White=2     	---        Mistake:       	White=3     	Black=4      Inaccurate:     	White=4     	---        OK:         	White=8     	Black=10     Best:        	White=3     	Black=1} 0-1

[Event "3rd Manaus Open 2024"]
[Site "Manaus"]
[Date "2024.10.13"]
[Round "3.4"]
[White "Ribeiro, Matheus Mendes Domin"]
[Black "Di Berardino, Diego Rafael"]
[Result "0-1"]
[ECO "A37"]
[WhiteElo "2250"]
[BlackElo "2479"]
[Annotator "TA"]
[PlyCount "92"]
[EventDate "2024.10.05"]
[EventType "swiss"]
[EventCountry "BRA"]
[SourceTitle "playchess.com"]
[Source "ChessBase"]
[SourceQuality "1"]
[TimeControl "5400+30"]

{[%evp 23,92,0,0,-9,-10,-39,13,-7,-41,-21,-29,-63,-55,-60,-34,-36,-44,-47,0,0,0,0,0,0,0,0,0,0,0,-7,0,-122,-30,-30,-25,-134,-116,-176,-148,-297,-304,-359,-361,-427,-403,-475,-476,-483,-425,-531,-516,-596,-591,-579,-575,-692,-679,-681,-665,-1647,-1618,-29969,-29969,-29971,-6111,-29976,-29976,-29975,-29973,-29977,-29978]} 1. c4 {[%emt 0:01:22]} g6 {[%emt 0:08:30]} 2. Nc3 {[%emt 0:01:55]} c5 {[%emt 0:00:26]} 3. Nf3 {[%emt 0:03:08]} Bg7 {[%emt 0:00:13]} 4. g3 {[%emt 0:03:32]} Nc6 {[%emt 0:00:34]} 5. Bg2 {[%emt 0:00:24]} e5 {[%emt 0:00:27]} 6. O-O {[%emt 0:01:28]} d6 {[%emt 0:00:07]} 7. d3 {[%emt 0:01:07]} Nge7 {[%emt 0:00:07]} 8. a3 {[%emt 0:04:55]} O-O {[%emt 0:00:37]} 9. Rb1 {[%emt 0:09:28]} a5 {[%emt 0:02:21]} 10. Ne1 {[%emt 0:05:40]} Be6 {[%emt 0:00:34]} 11. Nd5 {[%emt 0:01:07]} Rb8 {[%emt 0:00:36]} 12. Nc2 {[%emt 0:06:09]} b5 {[%emt 0:01:13]} 13. Bg5 {[%emt 0:05:19]} f6 {[%emt 0:02:45]} 14. Bd2 {[%emt 0:00:41][%cal Oc4b5]} a4 {[%emt 0:26:41]} (14... bxc4 $15 15. dxc4 f5) 15. cxb5 {[%emt 0:13:27] The position is equal.} Rxb5 {[%emt 0:01:09]} 16. Nc3 {[%emt 0:04:29][%csl LRa4,LRb5]} Ra5 {[%emt 0:21:21]} 17. Ne3 {[%emt 0:09:34]} Bb3 {[%emt 0:01:40]} 18. Qe1 {[%emt 0:00:07]} Nd4 {[%emt 0:03:46]} 19. Ncd5 {[%emt 0:03:41]} Rb5 {[%emt 0:00:53]} 20. Bc3 {[%emt 0:06:42]} Nc2 {[%emt 0:08:03]} (20... f5 $15) 21. Nxe7+ $11 {[%emt 0:03:04]} Qxe7 {[%emt 0:00:03]} 22. Nxc2 {[%emt 0:02:22]} Bxc2 {[%emt 0:00:04]} 23. Bd5+ {[%emt 0:01:58]} Kh8 {[%emt 0:00:03]} 24. Rc1 {[%emt 0:00:32]} Bb3 {[%emt 0:00:04]} 25. Bc4 {[%emt 0:10:49]} Rbb8 {[%emt 0:05:47]} 26. e4 {[%emt 0:00:00]} f5 {[%emt 0:00:20]} 27. f4 {[%emt 0:00:00]} (27. exf5 $11 gxf5 (27... Rxf5 28. Qe4 $11) 28. Bxb3 Rxb3 (28... axb3 29. f4 $11) 29. f4) 27... exf4 {[%emt 0:05:55]} (27... Bxc4 $17 28. dxc4 exf4 29. Rxf4 Rbe8 30. Bxg7+ Qxg7) 28. Rxf4 {[%emt 0:00:00]} Bxc4 {[%emt 0:02:18]} 29. dxc4 {[%emt 0:00:00] [#]} (29. Bxg7+ $11 Qxg7 30. Rxc4) 29... Rbe8 $1 $17 {[%emt 0:00:12] Black is more active.} 30. exf5 {[%emt 0:00:00]} (30. Bxg7+ $17 Qxg7 31. Rd1) 30... Qxe1+ $19 {[%emt 0:01:15]} ({Don't do} 30... Rxf5 31. Qxe7 Rxe7 32. Bxg7+ Kxg7 33. Rxf5 gxf5 34. Rd1) 31. Bxe1 {[%emt 0:00:12] [#] This costs White the game.} (31. Rxe1 $17 {is the only way for White.} Rxe1+ (31... gxf5 32. Bxg7+ Kxg7 33. Rxe8 $11) 32. Bxe1) 31... Bh6 $1 {[%emt 0:01:22]} ({Inferior is} 31... gxf5 32. Bc3 $11) ({Less strong is} 31... Rxf5 32. Rxf5 gxf5 33. Bc3 $15) 32. Bc3+ {[%emt 0:00:37]} Kg8 {[%emt 0:00:05]} 33. fxg6 {[%emt 0:02:03]} Bxf4 {[%emt 0:00:08]} 34. gxh7+ {[%emt 0:00:07]} Kxh7 {[%emt 0:00:04]} 35. gxf4 {[%emt 0:00:05]} Rxf4 {[%emt 0:00:15][%mdl 4096] Endgame. KRR-KRB} 36. Rd1 {[%emt 0:00:18]} Re6 {[%emt 0:00:51]} (36... Rxc4 $2 37. Rxd6 Re2 38. h3 $19) 37. Kg2 {[%emt 0:01:03]} Rg6+ {[%emt 0:01:34]} 38. Kh3 {[%emt 0:00:01]} Rxc4 {[%emt 0:01:14]} 39. Re1 {[%emt 0:00:24]} d5 {[%emt 0:01:21]} 40. Re7+ {[%emt 0:00:50]} Kg8 {[%emt 0:00:05]} 41. Be1 {[%emt 0:00:45]} Re4 {[%emt 0:00:33]} 42. Rxe4 {[%emt 0:00:17]} dxe4 {[%emt 0:00:04]} 43. Bf2 {[%emt 0:00:04]} c4 {[%emt 0:00:08] ( -> ...Kf7)} 44. Bg3 {[%emt 0:00:06]} e3 {[%emt 0:00:07] Black mates.} 45. Kg2 {[%emt 0:00:09]} Rf6 {[%emt 0:00:09]} 46. Be5 {[%emt 0:00:24]} e2 {[%emt 0:00:44] Weighted Error Value: White=0.74/Black=0.10 (very precise) .  Mistake:       	White=4     	Black=3      Inaccurate:     	White=1     	Black=1      OK:         	White=8     	Black=9      Best:        	White=1     	Black=5      Strong:       	---       	Black=2} 0-1